[Event "FIDE World Junior U20-ch Girls 2025"]
[Site "Petrovac"]
[Date "2025.02.28"]
[Round "3.37"]
[White "Vujatovic, Irina"]
[Black "Hernandez Diaz, Paula Sofia"]
[Result "1/2-1/2"]
[Annotator "ChessBase"]
[ECO "B51"]
[WhiteElo "2042"]
[BlackElo "1972"]
[PlyCount "101"]
[EventDate "2025.02.23"]
[EventType "swiss"]
[EventCountry "MNE"]
[SourceTitle "playchess.com"]
[Source "ChessBase"]
[SourceQuality "1"]
[TimeControl "40/5400+30:1800+30"]

1. e4 {[%emt 0:00:02]} c5 {[%emt 0:00:07]} 2. Nf3 {[%emt 0:00:04]} d6 {[%emt 0:00:12]} 3. Bb5+ {[%emt 0:00:05]} Nd7 {[%emt 0:00:06]} 4. O-O {[%emt 0:00:06]} a6 {[%emt 0:00:20]} 5. Bxd7+ {[%emt 0:00:08]} Bxd7 {[%emt 0:00:11]} 6. Re1 {[%emt 0:00:05]} Nf6 {[%emt 0:01:23]} 7. e5 {[%emt 0:00:06]} dxe5 {[%emt 0:02:47]} 8. Nxe5 {[%emt 0:00:08]} e6 {[%emt 0:03:01]} 9. d3 {[%emt 0:00:17]} Be7 {[%emt 0:01:10]} 10. Qf3 {[%emt 0:00:12]} Qc8 {[%emt 0:04:50]} 11. a4 {[%emt 0:03:50]} O-O {[%emt 0:02:02]} 12. a5 {[%emt 0:00:48]} Nd5 {[%emt 0:06:15]} 13. Na3 {[%emt 0:02:22]} f6 {[%emt 0:17:08]} 14. Nxd7 {[%emt 0:02:24]} Qxd7 {[%emt 0:00:01]} 15. Qe4 {[%emt 0:01:01]} e5 {[%emt 0:02:58]} 16. f4 {[%emt 0:02:47]} Rae8 {[%emt 0:01:20]} 17. fxe5 {[%emt 0:04:08]} fxe5 {[%emt 0:00:50]} 18. Nc4 {[%emt 0:00:34]} Bf6 {[%emt 0:01:25]} 19. Bd2 {[%emt 0:03:00]} Re7 {[%emt 0:14:13]} 20. Ne3 {[%emt 0:02:44]} Nxe3 {[%emt 0:02:25]} 21. Bxe3 {[%emt 0:00:13]} Rc8 {[%emt 0:00:21]} 22. Ra4 {[%emt 0:01:53]} Re6 {[%emt 0:05:35]} 23. Rc4 {[%emt 0:01:24]} Rec6 {[%emt 0:00:54]} 24. Ra1 {[%emt 0:00:49]} Qd6 {[%emt 0:02:37]} 25. g4 {[%emt 0:02:25]} h6 {[%emt 0:01:49]} 26. Rf1 {[%emt 0:03:46]} Rf8 {[%emt 0:02:39]} 27. Kg2 {[%emt 0:06:00]} Rf7 {[%emt 0:06:24]} 28. Rf5 {[%emt 0:04:10]} g6 {[%emt 0:04:43]} 29. Rf3 {[%emt 0:03:13]} Bg7 {[%emt 0:02:41]} 30. Rxf7 {[%emt 0:03:26]} Kxf7 {[%emt 0:00:01]} 31. Rc3 {[%emt 0:01:58]} Bf8 {[%emt 0:02:07]} 32. Rb3 {[%emt 0:03:41]} Qd7 {[%emt 0:00:58]} 33. h3 {[%emt 0:01:04]} Kf6 {[%emt 0:02:35]} 34. Bf2 {[%emt 0:04:56]} Qc7 {[%emt 0:05:29]} 35. Bg3 {[%emt 0:04:45]} Bd6 {[%emt 0:01:01]} 36. Qc4 {[%emt 0:03:58]} b5 {[%emt 0:03:41]} 37. axb6 {[%emt 0:00:13]} Rxb6 {[%emt 0:00:06]} 38. Rxb6 {[%emt 0:03:20]} Qxb6 {[%emt 0:00:01]} 39. Qd5 {[%emt 0:00:21]} a5 {[%emt 0:00:36]} 40. b3 {[%emt 0:00:35]} Qa6 {[%emt 0:01:03]} 41. Bh4+ {[%emt 0:30:55]} g5 {[%emt 0:02:41]} 42. Bf2 {[%emt 0:00:00]} Qb6 {[%emt 0:00:23]} 43. h4 {[%emt 0:00:00]} Qc7 {[%emt 0:02:26]} 44. hxg5+ {[%emt 0:00:00]} hxg5 {[%emt 0:00:45]} 45. Be3 {[%emt 0:00:00]} Qd7 {[%emt 0:00:37]} 46. Kf3 {[%emt 0:00:00]} Qe7 {[%emt 0:01:12]} 47. Qg8 {[%emt 0:00:00]} e4+ {[%emt 0:06:34]} 48. dxe4 {[%emt 0:00:00]} Bf4 {[%emt 0:00:42]} 49. Bxf4 {[%emt 0:00:00]} gxf4 {[%emt 0:00:05]} 50. g5+ {[%emt 0:00:00]} Ke5 {[%emt 0:01:11]} 51. Qd5# {[%emt 0:00:00]} 1/2-1/2

[Event "FIDE World Junior U20-ch Girls 2025"]
[Site "Petrovac"]
[Date "2025.02.28"]
[Round "3.38"]
[White "Radenkovic, Mila"]
[Black "Avetisyan, Ani"]
[Result "0-1"]
[Annotator "ChessBase"]
[ECO "A07"]
[WhiteElo "2027"]
[BlackElo "1904"]
[PlyCount "80"]
[EventDate "2025.02.23"]
[EventType "swiss"]
[EventCountry "MNE"]
[SourceTitle "playchess.com"]
[Source "ChessBase"]
[SourceQuality "1"]
[TimeControl "40/5400+30:1800+30"]

1. Nf3 {[%emt 0:00:03]} d5 {[%emt 0:00:09]} 2. g3 {[%emt 0:00:04]} Nd7 {[%emt 0:02:14]} 3. Bg2 {[%emt 0:00:49]} e5 {[%emt 0:01:30]} 4. d3 {[%emt 0:00:29]} Ngf6 {[%emt 0:00:32]} 5. O-O {[%emt 0:00:16]} Bd6 {[%emt 0:01:12]} 6. Nbd2 {[%emt 0:02:57]} O-O {[%emt 0:01:05]} 7. e4 {[%emt 0:01:18]} c6 {[%emt 0:01:17]} 8. c3 {[%emt 0:04:06]} a5 {[%emt 0:04:21]} 9. a4 {[%emt 0:00:35]} Qc7 {[%emt 0:01:40]} 10. Qc2 {[%emt 0:00:52]} Re8 {[%emt 0:07:11]} 11. Re1 {[%emt 0:02:28]} Nf8 {[%emt 0:04:37]} 12. Nf1 {[%emt 0:01:48]} Be6 {[%emt 0:11:25]} 13. Ne3 {[%emt 0:07:49]} h6 {[%emt 0:07:05]} 14. Nh4 {[%emt 0:06:24]} N8d7 {[%emt 0:01:28]} 15. Bd2 {[%emt 0:05:47]} Rad8 {[%emt 0:01:12]} 16. Rad1 {[%emt 0:09:24]} Bf8 {[%emt 0:12:14]} 17. b4 {[%emt 0:05:30]} dxe4 {[%emt 0:05:53]} 18. dxe4 {[%emt 0:00:42]} Ng4 {[%emt 0:06:02]} 19. Nxg4 {[%emt 0:05:32]} Bxg4 {[%emt 0:00:08]} 20. f3 {[%emt 0:00:08]} Be6 {[%emt 0:00:19]} 21. Bf1 {[%emt 0:00:23]} Nb6 {[%emt 0:02:19]} 22. Ng2 {[%emt 0:12:25]} Nc4 {[%emt 0:01:14]} 23. Bxc4 {[%emt 0:00:06]} Bxc4 {[%emt 0:00:07]} 24. Be3 {[%emt 0:01:44]} b5 {[%emt 0:04:18]} 25. axb5 {[%emt 0:01:59]} cxb5 {[%emt 0:00:04]} 26. bxa5 {[%emt 0:00:13]} Qxa5 {[%emt 0:00:03]} 27. Ra1 {[%emt 0:01:52]} Qc7 {[%emt 0:00:05]} 28. Qf2 {[%emt 0:09:04]} Rd3 {[%emt 0:01:57]} 29. Rec1 {[%emt 0:01:39]} Bb3 {[%emt 0:03:04]} 30. Qb2 {[%emt 0:06:52]} Qc4 {[%emt 0:00:42]} 31. Kf2 {[%emt 0:00:33]} Rc8 {[%emt 0:01:38]} 32. g4 {[%emt 0:04:23]} Ba4 {[%emt 0:04:09]} 33. Kg3 {[%emt 0:04:20]} Rxc3 {[%emt 0:01:14]} 34. Bd2 {[%emt 0:00:43]} Rc2 {[%emt 0:01:02]} 35. Qxe5 {[%emt 0:01:33]} Qd3 {[%emt 0:02:25]} 36. Bf4 {[%emt 0:02:06]} Rxc1 {[%emt 0:00:19]} 37. Rxc1 {[%emt 0:01:27]} Rxc1 {[%emt 0:00:01]} 38. g5 {[%emt 0:00:34]} Rc5 {[%emt 0:00:51]} 39. Qe8 {[%emt 0:00:30]} hxg5 {[%emt 0:00:10]} 40. Be3 {[%emt 0:00:00]} Qd6+ {[%emt 0:00:00]} 0-1

[Event "FIDE World Junior U20-ch Girls 2025"]
[Site "Petrovac"]
[Date "2025.02.28"]
[Round "3.39"]
[White "Romany, Joy"]
[Black "Morales Perez, Ghisell"]
[Result "1/2-1/2"]
[Annotator "ChessBase"]
[ECO "A57"]
[WhiteElo "2025"]
[BlackElo "1902"]
[PlyCount "118"]
[EventDate "2025.02.23"]
[EventType "swiss"]
[EventCountry "MNE"]
[SourceTitle "playchess.com"]
[Source "ChessBase"]
[SourceQuality "1"]
[TimeControl "40/5400+30:1800+30"]

1. d4 {[%emt 0:00:32]} Nf6 {[%emt 0:00:18]} 2. c4 {[%emt 0:00:07]} c5 {[%emt 0:00:06]} 3. d5 {[%emt 0:00:05]} b5 {[%emt 0:00:06]} 4. cxb5 {[%emt 0:00:23]} a6 {[%emt 0:00:07]} 5. e3 {[%emt 0:01:07]} e6 {[%emt 0:09:18]} 6. dxe6 {[%emt 0:01:27]} fxe6 {[%emt 0:00:08]} 7. Nc3 {[%emt 0:00:10]} d5 {[%emt 0:01:51]} 8. Nf3 {[%emt 0:00:10]} Bd6 {[%emt 0:00:43]} 9. e4 {[%emt 0:03:36]} Bc7 {[%emt 0:05:47]} 10. e5 {[%emt 0:11:36]} Ne4 {[%emt 0:08:28]} 11. Nxe4 {[%emt 0:01:21]} dxe4 {[%emt 0:00:09]} 12. Qxd8+ {[%emt 0:00:13]} Bxd8 {[%emt 0:00:09]} 13. Ng5 {[%emt 0:02:42]} Bxg5 {[%emt 0:00:59]} 14. Bxg5 {[%emt 0:00:03]} Nd7 {[%emt 0:00:17]} 15. Bf4 {[%emt 0:02:52]} O-O {[%emt 0:04:33]} 16. Bg3 {[%emt 0:00:08]} Rf5 {[%emt 0:25:45]} 17. bxa6 {[%emt 0:00:39]} Bxa6 {[%emt 0:01:24]} 18. Bxa6 {[%emt 0:00:02]} Rxa6 {[%emt 0:00:08]} 19. Ke2 {[%emt 0:01:00]} Nxe5 {[%emt 0:06:42]} 20. Bxe5 {[%emt 0:00:02]} Rxe5 {[%emt 0:00:13]} 21. Rhc1 {[%emt 0:00:25]} Ra4 {[%emt 0:01:34]} 22. Rc2 {[%emt 0:01:53]} c4 {[%emt 0:11:21]} 23. a3 {[%emt 0:02:30]} Kf7 {[%emt 0:02:32]} 24. Rd1 {[%emt 0:00:18]} Rd5 {[%emt 0:00:27]} 25. Rdc1 {[%emt 0:02:21]} Rb5 {[%emt 0:00:39]} 26. Rd2 {[%emt 0:01:32]} Rd5 {[%emt 0:00:31]} 27. Kd1 {[%emt 0:02:13]} Kf6 {[%emt 0:00:39]} 28. Rc3 {[%emt 0:01:43]} Ke5 {[%emt 0:06:57]} 29. Rg3 {[%emt 0:00:58]} g6 {[%emt 0:00:42]} 30. Rg5+ {[%emt 0:00:40]} Kd6 {[%emt 0:00:09]} 31. Kc2 {[%emt 0:03:46]} Kc5 {[%emt 0:01:27]} 32. Rg4 {[%emt 0:01:28]} c3 {[%emt 0:09:09]} 33. Re2 {[%emt 0:10:36]} cxb2 {[%emt 0:01:35]} 34. Kxb2 {[%emt 0:01:03]} Rdd4 {[%emt 0:00:26]} 35. Rg5+ {[%emt 0:01:48]} Kd6 {[%emt 0:01:15]} 36. Rb5 {[%emt 0:00:57]} Rd3 {[%emt 0:00:47]} 37. Rb3 {[%emt 0:00:25]} Rdd4 {[%emt 0:00:46]} 38. Rc2 {[%emt 0:01:49]} Rd5 {[%emt 0:00:37]} 39. Rb4 {[%emt 0:02:26]} Ra6 {[%emt 0:00:28]} 40. Rxe4 {[%emt 0:00:40]} Rd3 {[%emt 0:00:14]} 41. a4 {[%emt 0:33:12]} Rb6+ {[%emt 0:30:29]} 42. Kc1 {[%emt 0:00:19]} Rbb3 {[%emt 0:00:00]} 43. Rec4 {[%emt 0:00:00]} Ra3 {[%emt 0:00:00]} 44. Rc6+ {[%emt 0:00:00]} Kd5 {[%emt 0:00:00]} 45. R6c5+ {[%emt 0:00:00]} Kd6 {[%emt 0:00:00]} 46. a5 {[%emt 0:00:00]} Ra1+ {[%emt 0:00:00]} 47. Kb2 {[%emt 0:00:00]} Rda3 {[%emt 0:00:00]} 48. Rc6+ {[%emt 0:00:00]} Kd5 {[%emt 0:00:00]} 49. Rc8 {[%emt 0:00:00]} R1a2+ {[%emt 0:00:00]} 50. Kc1 {[%emt 0:00:00]} Rxa5 {[%emt 0:00:00]} 51. Rd2+ {[%emt 0:00:00]} Rxd2 {[%emt 0:00:00]} 52. Kxd2 {[%emt 0:00:00]} Ke5 {[%emt 0:00:00]} 53. g3 {[%emt 0:00:00]} Ra2+ {[%emt 0:00:00]} 54. Ke3 {[%emt 0:00:00]} Kf6 {[%emt 0:00:00]} 55. h4 {[%emt 0:00:45]} h5 {[%emt 0:00:00]} 56. Rf8+ {[%emt 0:00:20]} Kg7 {[%emt 0:00:00]} 57. Rf4 {[%emt 0:02:27]} Ra5 {[%emt 0:00:00]} 58. Re4 {[%emt 0:01:35]} Kf6 {[%emt 0:00:00]} 59. Re5 {[%emt 0:00:44]} Kxe5 {[%emt 0:00:00]} 1/2-1/2

[Event "FIDE World Junior U20-ch Girls 2025"]
[Site "Petrovac"]
[Date "2025.02.28"]
[Round "3.40"]
[White "Sovetbekova, Nurai"]
[Black "Imomkuzieva, Nilufarkhon"]
[Result "0-1"]
[Annotator "ChessBase"]
[ECO "D80"]
[WhiteElo "1940"]
[BlackElo "1983"]
[PlyCount "108"]
[EventDate "2025.02.23"]
[EventType "swiss"]
[EventCountry "MNE"]
[SourceTitle "playchess.com"]
[Source "ChessBase"]
[SourceQuality "1"]
[TimeControl "40/5400+30:1800+30"]

1. d4 {[%emt 0:00:04]} Nf6 {[%emt 0:00:08]} 2. c4 {[%emt 0:00:05]} g6 {[%emt 0:00:03]} 3. Nc3 {[%emt 0:00:06]} d5 {[%emt 0:00:03]} 4. Bg5 {[%emt 0:00:06]} Ne4 {[%emt 0:00:36]} 5. Bh4 {[%emt 0:00:06]} Nxc3 {[%emt 0:00:11]} 6. bxc3 {[%emt 0:00:02]} dxc4 {[%emt 0:01:04]} 7. e3 {[%emt 0:00:06]} Qd5 {[%emt 0:02:21]} 8. Be2 {[%emt 0:10:13]} Bg7 {[%emt 0:02:51]} 9. Nf3 {[%emt 0:02:52]} c6 {[%emt 0:06:59]} 10. a4 {[%emt 0:07:03]} Bg4 {[%emt 0:07:12]} 11. h3 {[%emt 0:04:39]} Bxf3 {[%emt 0:00:41]} 12. Bxf3 {[%emt 0:00:03]} Qa5 {[%emt 0:00:06]} 13. Qc2 {[%emt 0:03:45]} Nd7 {[%emt 0:18:03]} 14. O-O {[%emt 0:02:28]} Rc8 {[%emt 0:02:04]} 15. Rfb1 {[%emt 0:16:42]} b6 {[%emt 0:03:07]} 16. Be2 {[%emt 0:09:09]} e5 {[%emt 0:08:14]} 17. Bxc4 {[%emt 0:04:25]} exd4 {[%emt 0:00:58]} 18. cxd4 {[%emt 0:04:22]} O-O {[%emt 0:00:55]} 19. Be7 {[%emt 0:06:34]} Rfe8 {[%emt 0:00:16]} 20. Bb4 {[%emt 0:00:05]} Qg5 {[%emt 0:00:05]} 21. Qb3 {[%emt 0:00:45]} Qf6 {[%emt 0:00:55]} 22. Rc1 {[%emt 0:02:15]} c5 {[%emt 0:08:35]} 23. Bc3 {[%emt 0:01:40]} Qf5 {[%emt 0:04:30]} 24. d5 {[%emt 0:10:18]} Bxc3 {[%emt 0:00:52]} 25. Rxc3 {[%emt 0:01:45]} Nf6 {[%emt 0:01:38]} 26. Rc2 {[%emt 0:05:29]} Red8 {[%emt 0:00:46]} 27. Rd1 {[%emt 0:00:58]} Ne4 {[%emt 0:01:14]} 28. f3 {[%emt 0:01:03]} Nd6 {[%emt 0:00:06]} 29. e4 {[%emt 0:00:08]} Qf4 {[%emt 0:00:30]} 30. Re1 {[%emt 0:02:49]} Re8 {[%emt 0:01:20]} 31. Qc3 {[%emt 0:01:42]} Re5 {[%emt 0:00:44]} 32. Qe3 {[%emt 0:01:35]} Qxe3+ {[%emt 0:00:33]} 33. Rxe3 {[%emt 0:00:01]} f5 {[%emt 0:00:09]} 34. Ree2 {[%emt 0:02:43]} fxe4 {[%emt 0:00:29]} 35. fxe4 {[%emt 0:00:24]} Rce8 {[%emt 0:00:33]} 36. Bd3 {[%emt 0:00:41]} Nxe4 {[%emt 0:01:18]} 37. a5 {[%emt 0:01:07]} Nd6 {[%emt 0:01:08]} 38. Rxe5 {[%emt 0:00:36]} Rxe5 {[%emt 0:00:04]} 39. axb6 {[%emt 0:00:05]} axb6 {[%emt 0:00:04]} 40. Rb2 {[%emt 0:00:55]} c4 {[%emt 0:00:39]} 41. Be2 {[%emt 0:13:25]} c3 {[%emt 0:02:15]} 42. Rc2 {[%emt 0:00:10]} b5 {[%emt 0:00:02]} 43. Rxc3 {[%emt 0:05:57]} Rxe2 {[%emt 0:00:07]} 44. Rc6 {[%emt 0:00:02]} Nf5 {[%emt 0:00:35]} 45. Rb6 {[%emt 0:00:33]} Rb2 {[%emt 0:00:11]} 46. d6 {[%emt 0:00:11]} Kf7 {[%emt 0:00:09]} 47. Rb7+ {[%emt 0:00:21]} Ke6 {[%emt 0:00:41]} 48. d7 {[%emt 0:00:18]} Ke7 {[%emt 0:00:03]} 49. g4 {[%emt 0:00:04]} Nd4 {[%emt 0:01:14]} 50. d8=Q+ {[%emt 0:00:43]} Kxd8 {[%emt 0:00:05]} 51. Rxh7 {[%emt 0:00:06]} b4 {[%emt 0:00:11]} 52. Rb7 {[%emt 0:00:04]} b3 {[%emt 0:00:09]} 53. Kf1 {[%emt 0:00:12]} Ra2 {[%emt 0:00:18]} 54. Rb4 {[%emt 0:00:34]} b2 {[%emt 0:00:09]} 0-1

[Event "FIDE World Junior U20-ch Girls 2025"]
[Site "Petrovac"]
[Date "2025.02.28"]
[Round "3.41"]
[White "Shuqja, Klean"]
[Black "Djendjinovic, Ines"]
[Result "1/2-1/2"]
[Annotator "ChessBase"]
[ECO "B10"]
[WhiteElo "2049"]
[BlackElo "1841"]
[PlyCount "93"]
[EventDate "2025.02.23"]
[EventType "swiss"]
[EventCountry "MNE"]
[SourceTitle "playchess.com"]
[Source "ChessBase"]
[SourceQuality "1"]
[TimeControl "40/5400+30:1800+30"]

1. e4 {[%emt 0:06:40]} c6 {[%emt 0:00:53]} 2. c4 {[%emt 0:00:08]} d5 {[%emt 0:00:05]} 3. exd5 {[%emt 0:00:04]} cxd5 {[%emt 0:00:04]} 4. cxd5 {[%emt 0:00:02]} Nf6 {[%emt 0:00:04]} 5. Qa4+ {[%emt 0:00:31]} Nbd7 {[%emt 0:00:08]} 6. Nc3 {[%emt 0:00:31]} g6 {[%emt 0:00:10]} 7. Nf3 {[%emt 0:03:12]} Bg7 {[%emt 0:00:06]} 8. Bc4 {[%emt 0:00:39]} a6 {[%emt 0:00:07]} 9. Qa3 {[%emt 0:01:25]} O-O {[%emt 0:10:25]} 10. O-O {[%emt 0:00:14]} Rb8 {[%emt 0:01:56]} 11. Bb3 {[%emt 0:24:29]} b5 {[%emt 0:03:00]} 12. Qb4 {[%emt 0:05:31]} a5 {[%emt 0:00:41]} 13. Qh4 {[%emt 0:06:38]} Nc5 {[%emt 0:03:43]} 14. d4 {[%emt 0:04:12]} Nxb3 {[%emt 0:01:55]} 15. axb3 {[%emt 0:00:02]} b4 {[%emt 0:00:55]} 16. Ne4 {[%emt 0:04:32]} Qxd5 {[%emt 0:11:13]} 17. Nxf6+ {[%emt 0:03:17]} Bxf6 {[%emt 0:01:20]} 18. Bg5 {[%emt 0:03:28]} Bxg5 {[%emt 0:01:54]} 19. Nxg5 {[%emt 0:05:24]} h5 {[%emt 0:00:20]} 20. Rfe1 {[%emt 0:03:34]} Bb7 {[%emt 0:05:22]} 21. Qg3 {[%emt 0:07:19]} Qxd4 {[%emt 0:12:06]} 22. Rxe7 {[%emt 0:03:41]} Qxb2 {[%emt 0:02:32]} 23. Rae1 {[%emt 0:00:10]} Bd5 {[%emt 0:03:22]} 24. Ne4 {[%emt 0:12:07]} Bxe4 {[%emt 0:04:27]} 25. R7xe4 {[%emt 0:00:14]} Rbc8 {[%emt 0:00:32]} 26. f4 {[%emt 0:03:41]} Rc3 {[%emt 0:03:09]} 27. Qg5 {[%emt 0:01:37]} Rc1 {[%emt 0:07:43]} 28. h3 {[%emt 0:00:34]} Rxe1+ {[%emt 0:02:19]} 29. Rxe1 {[%emt 0:00:01]} Qxb3 {[%emt 0:01:06]} 30. Qxa5 {[%emt 0:00:22]} Qc3 {[%emt 0:00:44]} 31. Rf1 {[%emt 0:01:08]} Rc8 {[%emt 0:01:27]} 32. f5 {[%emt 0:00:30]} Qc5+ {[%emt 0:00:41]} 33. Qxc5 {[%emt 0:00:06]} Rxc5 {[%emt 0:00:04]} 34. fxg6 {[%emt 0:00:14]} fxg6 {[%emt 0:00:05]} 35. Rf6 {[%emt 0:00:54]} Kg7 {[%emt 0:01:30]} 36. Rb6 {[%emt 0:00:02]} Rc4 {[%emt 0:00:08]} 37. Kf2 {[%emt 0:01:13]} Kh6 {[%emt 0:03:12]} 38. Rb5 {[%emt 0:00:11]} Rc2+ {[%emt 0:01:05]} 39. Kf3 {[%emt 0:00:51]} Rc3+ {[%emt 0:00:10]} 40. Kf2 {[%emt 0:00:31]} b3 {[%emt 0:00:23]} 41. h4 {[%emt 0:02:22]} Rc2+ {[%emt 0:00:23]} 42. Kf3 {[%emt 0:00:25]} b2 {[%emt 0:00:13]} 43. Rb7 {[%emt 0:02:53]} Rd2 {[%emt 0:01:23]} 44. g3 {[%emt 0:00:36]} Rc2 {[%emt 0:00:21]} 45. Ke3 {[%emt 0:00:27]} Rc3+ {[%emt 0:00:36]} 46. Kf4 {[%emt 0:00:27]} Rc2 {[%emt 0:00:35]} 47. Kf3 {[%emt 0:00:14]} 1/2-1/2

[Event "FIDE World Junior U20-ch Girls 2025"]
[Site "Petrovac"]
[Date "2025.02.28"]
[Round "3.42"]
[White "Blauhut, Anna"]
[Black "Canino, Ruelle"]
[Result "0-1"]
[Annotator "ChessBase"]
[ECO "B06"]
[WhiteElo "1837"]
[BlackElo "2179"]
[PlyCount "56"]
[EventDate "2025.02.23"]
[EventType "swiss"]
[EventCountry "MNE"]
[SourceTitle "playchess.com"]
[Source "ChessBase"]
[SourceQuality "1"]
[TimeControl "40/5400+30:1800+30"]

1. e4 {[%emt 0:00:06]} g6 {[%emt 0:00:11]} 2. d4 {[%emt 0:00:24]} Bg7 {[%emt 0:00:07]} 3. Nc3 {[%emt 0:01:04]} d6 {[%emt 0:00:17]} 4. Be3 {[%emt 0:01:31]} Nd7 {[%emt 0:00:13]} 5. Qd2 {[%emt 0:01:21]} a6 {[%emt 0:00:18]} 6. h4 {[%emt 0:02:06]} h5 {[%emt 0:02:12]} 7. Nh3 {[%emt 0:00:59]} Ngf6 {[%emt 0:07:11]} 8. Ng5 {[%emt 0:03:56]} e6 {[%emt 0:10:13]} 9. O-O-O {[%emt 0:04:50]} b5 {[%emt 0:03:58]} 10. Be2 {[%emt 0:05:29]} Bb7 {[%emt 0:01:12]} 11. f3 {[%emt 0:00:32]} c5 {[%emt 0:10:28]} 12. dxc5 {[%emt 0:16:31]} dxc5 {[%emt 0:00:08]} 13. Bxc5 {[%emt 0:03:54]} Nxc5 {[%emt 0:01:47]} 14. Qxd8+ {[%emt 0:02:11]} Rxd8 {[%emt 0:00:05]} 15. Rxd8+ {[%emt 0:00:05]} Kxd8 {[%emt 0:00:03]} 16. Nxf7+ {[%emt 0:00:06]} Ke7 {[%emt 0:00:29]} 17. Nxh8 {[%emt 0:01:05]} Bxh8 {[%emt 0:00:04]} 18. a3 {[%emt 0:00:37]} Nfd7 {[%emt 0:01:58]} 19. Na2 {[%emt 0:02:56]} Be5 {[%emt 0:03:19]} 20. b3 {[%emt 0:06:33]} Nb8 {[%emt 0:02:33]} 21. b4 {[%emt 0:05:04]} Na4 {[%emt 0:01:03]} 22. c4 {[%emt 0:00:24]} Nc6 {[%emt 0:05:26]} 23. Kb1 {[%emt 0:03:45]} Nd4 {[%emt 0:02:56]} 24. Bd3 {[%emt 0:00:51]} Bf4 {[%emt 0:01:57]} 25. Nc1 {[%emt 0:03:09]} e5 {[%emt 0:01:31]} 26. cxb5 {[%emt 0:03:00]} axb5 {[%emt 0:00:13]} 27. Ka2 {[%emt 0:03:28]} Bc8 {[%emt 0:01:22]} 28. Ka1 {[%emt 0:01:30]} Bxc1 {[%emt 0:00:31]} 0-1

[Event "FIDE World Junior U20-ch Girls 2025"]
[Site "Petrovac"]
[Date "2025.02.28"]
[Round "3.43"]
[White "Kaloki, Zuri"]
[Black "Karacsonyi, Luca"]
[Result "0-1"]
[Annotator "ChessBase"]
[ECO "B22"]
[WhiteElo "1784"]
[BlackElo "2026"]
[PlyCount "142"]
[EventDate "2025.02.23"]
[EventType "swiss"]
[EventCountry "MNE"]
[SourceTitle "playchess.com"]
[Source "ChessBase"]
[SourceQuality "1"]
[TimeControl "40/5400+30:1800+30"]

1. e4 {[%emt 0:00:54]} c5 {[%emt 0:00:08]} 2. c3 {[%emt 0:00:03]} d5 {[%emt 0:00:06]} 3. exd5 {[%emt 0:00:05]} Qxd5 {[%emt 0:00:04]} 4. d4 {[%emt 0:00:09]} Nc6 {[%emt 0:00:06]} 5. Nf3 {[%emt 0:00:04]} Bg4 {[%emt 0:00:06]} 6. Be2 {[%emt 0:00:05]} cxd4 {[%emt 0:00:10]} 7. cxd4 {[%emt 0:00:06]} e6 {[%emt 0:00:06]} 8. O-O {[%emt 0:01:13]} Nf6 {[%emt 0:00:16]} 9. Nc3 {[%emt 0:00:14]} Qa5 {[%emt 0:00:51]} 10. h3 {[%emt 0:07:33]} Bh5 {[%emt 0:00:09]} 11. Bf4 {[%emt 0:04:18]} Be7 {[%emt 0:03:21]} 12. a3 {[%emt 0:10:41]} O-O {[%emt 0:03:59]} 13. b4 {[%emt 0:01:37]} Qd8 {[%emt 0:04:41]} 14. Be5 {[%emt 0:03:59]} Rc8 {[%emt 0:04:28]} 15. Rc1 {[%emt 0:08:45]} Nd7 {[%emt 0:09:54]} 16. Bf4 {[%emt 0:03:24]} Nb6 {[%emt 0:04:33]} 17. Be3 {[%emt 0:02:05]} Bf6 {[%emt 0:10:10]} 18. g4 {[%emt 0:08:14]} Bg6 {[%emt 0:00:33]} 19. Qd2 {[%emt 0:02:13]} Nd5 {[%emt 0:06:39]} 20. Nxd5 {[%emt 0:00:31]} Qxd5 {[%emt 0:00:53]} 21. Rc5 {[%emt 0:02:27]} Qd7 {[%emt 0:02:18]} 22. d5 {[%emt 0:03:02]} exd5 {[%emt 0:06:00]} 23. Rxd5 {[%emt 0:00:45]} Qe6 {[%emt 0:02:24]} 24. Rc5 {[%emt 0:12:41]} Rfd8 {[%emt 0:02:51]} 25. Qc1 {[%emt 0:00:51]} Be4 {[%emt 0:08:09]} 26. Ng5 {[%emt 0:02:46]} Bxg5 {[%emt 0:01:56]} 27. Bxg5 {[%emt 0:00:34]} Nd4 {[%emt 0:06:18]} 28. Qe3 {[%emt 0:06:00]} Rxc5 {[%emt 0:02:32]} 29. Bxd8 {[%emt 0:03:11]} Nxe2+ {[%emt 0:13:13]} 30. Qxe2 {[%emt 0:00:08]} Rc8 {[%emt 0:04:57]} 31. Re1 {[%emt 0:01:19]} Bd5 {[%emt 0:01:24]} 32. Qxe6 {[%emt 0:00:59]} fxe6 {[%emt 0:00:40]} 33. Bg5 {[%emt 0:00:50]} Rc3 {[%emt 0:01:10]} 34. Re3 {[%emt 0:03:57]} Rc1+ {[%emt 0:00:05]} 35. Kh2 {[%emt 0:00:07]} h6 {[%emt 0:00:26]} 36. Be7 {[%emt 0:00:21]} Rh1+ {[%emt 0:01:42]} 37. Kg3 {[%emt 0:00:07]} g5 {[%emt 0:00:37]} 38. f3 {[%emt 0:00:15]} Kf7 {[%emt 0:00:35]} 39. Bc5 {[%emt 0:01:19]} b6 {[%emt 0:00:18]} 40. Bd4 {[%emt 0:00:07]} Rd1 {[%emt 0:01:03]} 41. Be5 {[%emt 0:30:14]} Bc4 {[%emt 0:02:04]} 42. Rc3 {[%emt 0:00:00]} b5 {[%emt 0:00:29]} 43. Bb8 {[%emt 0:00:00]} a6 {[%emt 0:00:12]} 44. Ba7 {[%emt 0:00:00]} Rd2 {[%emt 0:03:23]} 45. Be3 {[%emt 0:00:00]} Ra2 {[%emt 0:01:13]} 46. f4 {[%emt 0:00:00]} Kg6 {[%emt 0:03:25]} 47. fxg5 {[%emt 0:00:00]} hxg5 {[%emt 0:00:12]} 48. Bf2 {[%emt 0:00:00]} Bd5 {[%emt 0:01:59]} 49. Re3 {[%emt 0:00:00]} Kf6 {[%emt 0:00:31]} 50. Rc3 {[%emt 0:00:00]} e5 {[%emt 0:00:50]} 51. Re3 {[%emt 0:00:00]} Ke6 {[%emt 0:01:01]} 52. Rc3 {[%emt 0:00:00]} Bh1 {[%emt 0:08:07]} 53. Re3 {[%emt 0:01:42]} e4 {[%emt 0:01:34]} 54. Rc3 {[%emt 0:01:47]} Kd6 {[%emt 0:03:59]} 55. Bc5+ {[%emt 0:03:37]} Ke6 {[%emt 0:00:57]} 56. Bf2 {[%emt 0:00:09]} Kd7 {[%emt 0:00:55]} 57. Kh2 {[%emt 0:06:58]} Rxf2+ {[%emt 0:00:54]} 58. Kxh1 {[%emt 0:00:06]} Kd6 {[%emt 0:00:29]} 59. Kg1 {[%emt 0:01:17]} Rf4 {[%emt 0:02:42]} 60. Kg2 {[%emt 0:00:48]} Kd5 {[%emt 0:00:29]} 61. Rc5+ {[%emt 0:01:11]} Kd4 {[%emt 0:00:10]} 62. Rc6 {[%emt 0:00:19]} e3 {[%emt 0:01:26]} 63. Rd6+ {[%emt 0:03:03]} Kc3 {[%emt 0:01:08]} 64. Rc6+ {[%emt 0:01:07]} Kd2 {[%emt 0:00:54]} 65. Rd6+ {[%emt 0:00:43]} Ke1 {[%emt 0:01:01]} 66. Rd5 {[%emt 0:01:06]} e2 {[%emt 0:00:28]} 67. Rd3 {[%emt 0:01:02]} Rf2+ {[%emt 0:00:40]} 68. Kg1 {[%emt 0:00:18]} Rf6 {[%emt 0:00:13]} 69. Kg2 {[%emt 0:00:13]} Rc6 {[%emt 0:00:28]} 70. Rd8 {[%emt 0:01:10]} Rc2 {[%emt 0:00:43]} 71. Rd5 {[%emt 0:01:11]} Rd2 {[%emt 0:00:21]} 0-1